bitfinex/quotes_BTCUSD_20210101
["timestamp","ask_amount","ask_price","bid_price","bid_amount"]
[1609505077490,3.47261531,29513.0,29512.0,0.96961595]
[1609505077690,2.96491531,29513.0,29512.0,0.96961595]
[1609505077893,2.96491531,29513.0,29512.0,1.91961595]
[1609505077894,1.95828931,29513.0,29512.0,1.91961595]
[1609505078095,1.95828931,29513.0,29512.0,2.28413995]
[1609505078096,1.80828931,29513.0,29512.0,2.28413995]
[1609505078298,1.64156988,29513.0,29512.0,2.28413995]
[1609505078499,1.64156988,29513.0,29512.0,1.33413995]
[1609505079998,0.64156988,29513.0,29512.0,2.68413995]
[1609505081596,0.64156988,29513.0,29512.0,1.33413995]
[1609505081811,0.64156988,29513.0,29512.0,3.08413995]
[1609505082521,0.64156988,29513.0,29512.0,1.33413995]
[1609505083721,0.64156988,29513.0,29512.0,1.47606023]
[1609505083926,0.64156988,29513.0,29512.0,4.15606023]
[1609505084428,0.64156988,29513.0,29512.0,4.52606023]
[1609505084820,0.64156988,29513.0,29512.0,7.17606023]
[1609505085018,9.88e-06,29513.0,29512.0,7.17606023]
[1609505085428,9.88e-06,29513.0,29512.0,7.85256023]
[1609505086029,9.88e-06,29513.0,29512.0,8.16936325]
[1609505086425,9.88e-06,29513.0,29512.0,8.15936325]
[1609505088953,0.00616004,29525.0,29513.0,0.31680302]
[1609505089148,1.00615995,29526.0,29515.0,0.31680302]
[1609505089348,1.00615995,29526.0,29517.0,0.31680302]
[1609505089550,1.0,29526.0,29518.0,0.444524]
[1609505089850,1.0,29526.0,29520.0,0.364524]
[1609505090049,0.515,29525.0,29521.0,0.31680302]
[1609505090252,1.0,29526.0,29522.0,0.364524]
[1609505090444,1.0,29526.0,29523.0,0.31680302]
[1609505090752,1.0,29526.0,29524.0,0.364524]
[1609505090945,0.15,29525.0,29524.0,1.31340263]
[1609505091343,1.0,29527.0,29524.0,1.31340263]
[1609505091551,1.0,29527.0,29524.0,0.94887863]
[1609505092222,1.0,29527.0,29525.0,0.364524]
[1609505092422,1.0,29527.0,29525.0,1.31340263]
[1609505093138,1.0,29527.0,29525.0,1.82070263]
[1609505093337,1.0,29527.0,29526.0,3.36680302]
[1609505093540,1.0,29527.0,29526.0,3.73132702]
[1609505093736,1.0,29527.0,29526.0,4.68020565]
[1609505093940,1.0,29527.0,29526.0,1.31340263]
[1609505094443,1.15,29527.0,29526.0,0.94887863]
[1609505095339,1.67,29527.0,29526.0,0.93887863]
[1609505095543,1.15,29527.0,29526.0,0.93887863]
[1609505095845,0.15,29527.0,29526.0,5.05340263]
[1609505096146,0.52,29530.0,29529.0,0.364524]
[1609505096348,1.52614851,29533.0,29529.0,3.064524]
[1609505096547,0.52,29530.0,29529.0,1.30340263]
[1609505096746,0.52,29530.0,29529.0,0.93887863]
[1609505096963,0.10193735,29530.0,29529.0,0.93887863]
[1609505097156,0.62193735,29530.0,29529.0,0.93887863]
[1609505097962,0.65540547,29530.0,29529.0,0.93887863]
[1609505098255,0.62193735,29530.0,29529.0,0.93887863]
[1609505098655,0.52,29530.0,29529.0,0.93887863]
[1609505099363,1.51,29530.0,29529.0,0.93887863]
[1609505099561,0.745,29530.0,29529.0,0.93887863]
[1609505099856,0.52,29530.0,29529.0,0.92130207]
[1609505100257,0.52,29530.0,29529.0,0.16309359]
[1609505100258,1.12,29530.0,29529.0,0.16309359]
[1609505100457,0.52,29530.0,29529.0,0.16309359]
[1609505101563,1.51,29530.0,29529.0,0.16309359]
[1609505101873,2.3098,29530.0,29529.0,0.16309359]
[1609505102064,2.34326812,29530.0,29529.0,0.16309359]
[1609505102699,3.53616812,29530.0,29529.0,0.16309359]
[1609505102901,3.02326812,29530.0,29529.0,0.16309359]
[1609505103194,3.48826812,29530.0,29529.0,0.16309359]
[1609505103398,3.99566813,29530.0,29529.0,0.16309359]
[1609505103797,4.00181964,29530.0,29529.0,0.16309359]
[1609505103993,4.15181964,29530.0,29529.0,0.16309359]
[1609505104200,4.39946813,29530.0,29529.0,0.16309359]
[1609505104600,4.5556361,29530.0,29529.0,0.16309359]
[1609505105204,4.64382686,29530.0,29529.0,0.16309359]
[1609505105906,4.61035874,29530.0,29529.0,0.16309359]
[1609505106362,3.62035874,29530.0,29529.0,0.16309359]
[1609505106563,3.54980613,29530.0,29529.0,0.16309359]
[1609505106874,4.57327425,29530.0,29529.0,0.16309359]
[1609505107064,4.67025425,29530.0,29529.0,0.16309359]
[1609505107268,4.0743168,29530.0,29529.0,0.16309359]
[1609505107672,4.0205168,29530.0,29529.0,0.16309359]
[1609505107864,4.73765959,29530.0,29529.0,0.16309359]
[1609505108259,4.83855425,29530.0,29529.0,0.16309359]
[1609505108663,4.54943146,29530.0,29529.0,0.16309359]
[1609505109562,5.54943146,29530.0,29509.0,0.00052389]
[1609505109773,1.52,29513.0,29508.0,0.33349663]
[1609505109966,0.52,29509.0,29508.0,0.00072389]
[1609505110167,0.52,29509.0,29508.0,1.38194789]
[1609505110471,1.0,29513.0,29509.0,0.00052389]
[1609505110963,1.0,29513.0,29509.0,1.01722389]
[1609505111164,1.0,29513.0,29510.0,0.00052389]
[1609505111467,1.0,29513.0,29510.0,1.01722389]
[1609505114396,1.0,29513.0,29510.0,0.68722389]
[1609505115498,0.52,29512.0,29510.0,0.68722389]
[1609505115698,1.52,29513.0,29510.0,0.68722389]
[1609505116097,0.52,29512.0,29510.0,0.68722389]
[1609505117735,1.17,29511.0,29510.0,0.68722389]
[1609505117931,2.385,29511.0,29510.0,0.68722389]
[1609505118334,2.705,29511.0,29510.0,0.68722389]
[1609505118538,2.73846812,29511.0,29510.0,0.68722389]
[1609505118937,2.705,29511.0,29510.0,0.68722389]
[1609505120139,2.862,29511.0,29510.0,0.68722389]
[1609505121538,2.89546812,29511.0,29510.0,0.68722389]
[1609505122191,2.862,29511.0,29510.0,0.67722389]
[1609505122393,2.89546812,29511.0,29510.0,0.67722389]
[1609505122790,2.862,29511.0,29510.0,0.67722389]
[1609505123192,1.872,29511.0,29510.0,0.67722389]
[1609505123396,2.862,29511.0,29510.0,0.67722389]
[1609505125092,3.382,29511.0,29510.0,0.67722389]
[1609505126401,3.7206,29511.0,29510.0,0.67722389]
[1609505127423,2.7306,29511.0,29510.0,0.67722389]
[1609505128024,2.392,29511.0,29510.0,0.67722389]
[1609505128226,3.382,29511.0,29510.0,0.67722389]
[1609505128627,2.732,29511.0,29510.0,0.01740673]
[1609505128831,2.732,29511.0,29500.0,7.03383441]
[1609505128832,0.99,29501.0,29500.0,7.03383441]
[1609505129046,2.71534,29501.0,29500.0,5.05434815]
[1609505129338,3.89727216,29501.0,29500.0,3.10235391]
[1609505129531,4.4848553,29501.0,29500.0,1.23705391]
[1609505129731,4.4848553,29501.0,29500.0,0.40235294]
[1609505129932,4.4889569,29501.0,29500.0,0.40075294]
[1609505130137,0.99,29498.0,29495.0,0.0012]
[1609505130336,0.99,29497.0,29496.0,0.0004]
[1609505130634,2.14408676,29497.0,29496.0,1.0175]
[1609505130828,2.03909792,29497.0,29496.0,1.0175]
[1609505131036,2.23211555,29497.0,29496.0,1.0175]
[1609505131231,2.58026765,29497.0,29496.0,1.0075]
[1609505131428,2.23211555,29497.0,29496.0,1.0075]
[1609505131632,2.3831521,29497.0,29496.0,1.0075]
[1609505131828,2.035,29497.0,29496.0,1.0075]
[1609505132034,1.51,29497.0,29496.0,1.00799562]
[1609505132234,1.51,29497.0,29496.0,1.00779562]
[1609505132437,1.51,29497.0,29496.0,1.00539562]
[1609505132438,2.018,29497.0,29496.0,1.00539562]
[1609505132657,2.30537,29497.0,29496.0,1.00539562]
[1609505132855,3.8471021,29497.0,29496.0,1.00539562]
[1609505133363,3.85118784,29497.0,29496.0,1.00539562]
[1609505133667,0.90503574,29497.0,29496.0,1.00539562]
[1609505133867,0.75113304,29497.0,29496.0,1.00539562]
[1609505134060,0.52613304,29497.0,29496.0,1.00539562]
[1609505134266,0.52,29497.0,29496.0,1.00539562]
[1609505137725,1.51,29497.0,29496.0,1.00039562]
[1609505138036,1.735,29497.0,29496.0,1.00039562]
[1609505138237,0.745,29497.0,29496.0,1.00039562]
[1609505138442,0.52,29497.0,29496.0,1.00039562]
[1609505142672,0.52,29497.0,29496.0,1.32397341]
[1609505142872,1.51,29497.0,29496.0,1.32397341]
[1609505143072,1.735,29497.0,29496.0,1.32397341]
[1609505143668,1.735,29497.0,29496.0,1.22397341]
[1609505144373,1.73909121,29497.0,29496.0,1.22397341]
[1609505144571,0.74909121,29497.0,29496.0,1.22397341]
[1609505144771,1.51409121,29497.0,29496.0,1.22397341]
[1609505145476,1.68370121,29497.0,29496.0,1.22397341]
[1609505145894,1.68370121,29497.0,29496.0,1.11767628]
[1609505146074,1.93370121,29497.0,29496.0,1.11767628]
[1609505146772,1.97716933,29497.0,29496.0,1.11767628]
[1609505146977,1.77409121,29497.0,29496.0,1.11767628]
[1609505147174,1.77613664,29497.0,29496.0,1.11767628]
[1609505147792,0.77613664,29497.0,29496.0,1.11767628]
[1609505147995,0.52613664,29497.0,29496.0,1.11767628]
[1609505148298,0.52409167,29497.0,29496.0,1.11767628]
[1609505148896,0.5261416,29497.0,29496.0,1.11767628]
[1609505149098,1.5161416,29497.0,29496.0,1.11767628]
[1609505149298,1.8661416,29497.0,29496.0,1.11767628]
[1609505149495,0.87,29497.0,29496.0,1.11767628]
[1609505149992,1.87,29497.0,29496.0,1.11767628]
[1609505150898,3.05995909,29497.0,29496.0,1.11767628]
[1609505151106,3.26995909,29497.0,29496.0,1.11767628]
[1609505151302,3.61811119,29497.0,29496.0,1.11767628]
[1609505152061,3.65157931,29497.0,29496.0,1.11767628]
[1609505152258,3.30342721,29497.0,29496.0,1.11767628]
[1609505152462,3.30342721,29497.0,29496.0,0.23369704]
[1609505152463,4.14126804,29497.0,29496.0,0.23369704]
[1609505153371,0.99,29496.0,29495.0,0.0012]
[1609505153668,3.280314,29496.0,29495.0,0.0012]
[1609505154566,3.95251935,29496.0,29495.0,0.0012]
[1609505155664,4.74251935,29496.0,29495.0,0.0012]
[1609505155966,3.95251935,29496.0,29495.0,0.0012]
[1609505156165,2.96251935,29496.0,29495.0,0.0012]
[1609505156575,2.96251935,29496.0,29491.0,0.0012]
[1609505156576,1.0,29492.0,29491.0,0.0004]
[1609505156768,3.1222221,29492.0,29491.0,1.0177]
[1609505156996,4.1561921,29492.0,29491.0,1.01818389]
[1609505157303,0.99,29489.0,29485.0,0.001]
[1609505157621,0.002238,29467.0,29463.0,0.0012]
[1609505157802,1.176318,29467.0,29463.0,0.0012]
[1609505158009,1.45478612,29467.0,29466.0,1.0193]
[1609505158198,1.421318,29467.0,29466.0,1.0143]
[1609505158394,1.941318,29467.0,29466.0,1.0143]
[1609505158604,1.576318,29467.0,29466.0,1.0143]
[1609505159206,1.576318,29467.0,29466.0,0.9743]
[1609505159402,1.7694701,29467.0,29466.0,0.9743]
[1609505159596,1.421318,29467.0,29466.0,0.9743]
[1609505160108,1.421318,29467.0,29466.0,5.688824]
[1609505160109,1.176318,29467.0,29466.0,5.688824]
[1609505160300,1.002238,29467.0,29466.0,6.197224]
[1609505160503,0.002238,29467.0,29466.0,6.197224]
[1609505161005,0.002238,29467.0,29466.0,7.6463407]
[1609505161708,0.002238,29467.0,29466.0,6.7463407]
[1609505162011,0.002238,29467.0,29466.0,6.56269714]
[1609505162012,0.00029592,29467.0,29466.0,6.56269714]
[1609505162196,0.00029592,29467.0,29466.0,6.19269714]
[1609505164033,1.0,29472.0,29468.0,0.68132702]
[1609505164223,1.0,29472.0,29468.0,1.333824]
[1609505164528,1.0,29472.0,29468.0,1.33429714]
[1609505164929,1.0,29470.0,29469.0,0.31727616]
[1609505165128,1.0,29470.0,29469.0,0.96977314]
[1609505165531,1.0,29470.0,29469.0,0.9693]
[1609505165923,1.0,29470.0,29469.0,3.9193]
[1609505166126,1.0,29470.0,29469.0,4.28429714]
[1609505166333,0.52,29475.0,29469.0,4.28429714]
[1609505166641,1.0,29476.0,29470.0,1.33429714]
[1609505166829,1.0,29476.0,29471.0,0.364524]
[1609505167114,1.0,29476.0,29471.0,1.333824]
[1609505167309,0.9998,29476.0,29471.0,1.33429714]
[1609505167506,0.18,29480.0,29471.0,1.33429714]
[1609505167703,0.52,29480.0,29471.0,0.97310275]
[1609505167912,0.25,29479.0,29472.0,0.00047314]
[1609505168101,0.25,29479.0,29472.0,0.96977314]
[1609505168310,0.25,29479.0,29472.0,0.97310275]
[1609505168510,0.25,29479.0,29472.0,0.97262961]
[1609505168705,0.23,29479.0,29472.0,0.97262961]
[1609505169006,0.23,29479.0,29472.0,1.48082961]
[1609505169217,1.0,29475.0,29473.0,0.00047314]
[1609505169425,0.91566,29474.0,29473.0,0.00047314]
[1609505169617,0.91566,29474.0,29473.0,0.96977314]
[1609505169814,0.91566,29474.0,29473.0,0.97310275]
[1609505170117,0.91566,29474.0,29473.0,0.97262961]
[1609505170413,1.06566,29474.0,29473.0,0.97262961]
[1609505171310,1.06566,29474.0,29473.0,0.96762961]
[1609505171717,0.82,29474.0,29473.0,0.96762961]
[1609505171910,0.82,29474.0,29473.0,1.56762961]
[1609505172132,0.82,29474.0,29473.0,0.96810275]
[1609505172738,0.82,29474.0,29473.0,0.96762961]
[1609505173244,1.99567,29474.0,29473.0,0.96762961]
[1609505173440,2.53753813,29474.0,29473.0,0.96762961]
[1609505173632,3.53753813,29474.0,29473.0,0.96762961]
[1609505173837,3.60813457,29474.0,29473.0,0.96762961]
[1609505174442,2.61813457,29474.0,29473.0,0.96762961]
[1609505175044,2.51407001,29474.0,29473.0,0.96762961]
[1609505176244,2.00567,29474.0,29473.0,0.96762961]
[1609505176643,1.49567,29474.0,29473.0,0.96762961]
[1609505177042,0.49567,29474.0,29473.0,0.96762961]
[1609505177243,1.0,29475.0,29473.0,0.96762961]
[1609505181077,1.00201375,29475.0,29473.0,0.96762961]
[1609505181278,0.99,29474.0,29473.0,0.96762961]
[1609505181477,1.15898,29474.0,29473.0,0.96762961]
[1609505181672,1.71244812,29474.0,29473.0,0.96762961]
[1609505181875,3.23244812,29474.0,29473.0,0.96762961]
[1609505182084,3.19898,29474.0,29473.0,0.96762961]
[1609505182490,2.40932373,29474.0,29473.0,0.96762961]
[1609505182788,3.39932373,29474.0,29473.0,0.96762961]
[1609505182979,2.67432373,29474.0,29473.0,0.96762961]
[1609505183288,2.7546578,29474.0,29473.0,0.96762961]
[1609505184111,2.67432373,29474.0,29473.0,0.96762961]
[1609505184303,3.66432373,29474.0,29473.0,0.96762961]
[1609505184513,2.47398,29474.0,29473.0,0.96762961]
[1609505184811,2.67458976,29474.0,29473.0,0.96810275]
[1609505185414,2.67458976,29474.0,29473.0,0.96762961]
[1609505187133,1.72060976,29474.0,29473.0,0.96762961]
[1609505187527,2.24060976,29474.0,29473.0,0.96762961]
[1609505187732,2.32115657,29474.0,29473.0,0.96762961]
[1609505188629,1.80115657,29474.0,29473.0,0.96762961]
[1609505188929,2.32115657,29474.0,29473.0,0.96762961]
[1609505189833,3.31115657,29474.0,29473.0,0.96762961]
[1609505190136,2.57115657,29474.0,29473.0,0.96762961]
[1609505190434,2.49060976,29474.0,29473.0,0.96762961]
[1609505191939,2.49060976,29474.0,29473.0,0.96262961]
[1609505191940,2.5709988,29474.0,29473.0,0.96262961]
[1609505192533,2.3209988,29474.0,29473.0,0.96262961]
[1609505193151,2.24060976,29474.0,29473.0,0.96262961]
[1609505193856,2.08028221,29474.0,29473.0,0.96262961]
[1609505194255,2.24094954,29474.0,29473.0,0.96262961]
[1609505194554,2.24094954,29474.0,29473.0,1.76262961]
[1609505194854,2.24094954,29474.0,29473.0,0.96262961]
[1609505195159,0.72094954,29474.0,29473.0,0.96262961]
[1609505195661,2.69e-06,29474.0,29473.0,6.80888361]
[1609505195857,2.69e-06,29474.0,29473.0,6.88935675]
[1609505196166,7.61e-06,29475.0,29474.0,0.364524]
[1609505196368,1.284e-05,29476.0,29475.0,0.68132702]
[1609505196668,0.0006862,29481.0,29480.0,5.614524]
[1609505196860,0.0006862,29481.0,29480.0,6.61510361]
[1609505197094,0.0006862,29481.0,29480.0,7.57440361]
[1609505197491,0.0006862,29481.0,29480.0,7.57487675]
[1609505197983,0.0006862,29481.0,29480.0,8.08287675]
[1609505200196,0.0006862,29481.0,29480.0,8.39967977]
[1609505200900,0.0006862,29481.0,29480.0,8.08287675]
[1609505201102,0.0006862,29481.0,29480.0,8.39967977]
[1609505201997,0.0006862,29481.0,29480.0,5.96724681]
[1609505202224,1.52,29490.0,29481.0,5.56680302]
[1609505202431,1.0,29490.0,29483.0,0.31680302]
[1609505202631,1.0,29490.0,29485.0,0.508]
[1609505202830,0.364906,29489.0,29485.0,1.47062961]
[1609505203028,0.364906,29489.0,29486.0,0.58180302]
[1609505203226,0.364906,29489.0,29486.0,1.54443263]
[1609505203428,0.364906,29489.0,29487.0,0.31680302]
[1609505203733,0.884906,29489.0,29487.0,1.27990577]
[1609505203933,0.52,29488.0,29487.0,0.96310275]
[1609505204132,0.884906,29488.0,29487.0,0.96310275]
[1609505204335,0.364906,29488.0,29487.0,0.96262961]
[1609505204630,1.0,29490.0,29487.0,0.96262961]
[1609505204835,0.364906,29489.0,29487.0,1.18262961]
[1609505205032,0.364906,29489.0,29488.0,2.40047314]
[1609505205234,1.0,29490.0,29488.0,0.96310275]
[1609505205431,0.364906,29489.0,29488.0,0.96310275]
[1609505205834,0.884906,29489.0,29488.0,0.96310275]
[1609505206028,0.884906,29489.0,29488.0,1.13810275]
[1609505206230,0.884906,29489.0,29488.0,0.96310275]
[1609505206433,0.364906,29489.0,29488.0,0.96310275]
[1609505206839,0.36103777,29489.0,29488.0,1.66310275]
[1609505207032,0.36103777,29489.0,29488.0,1.22310275]
[1609505207336,1.0,29490.0,29488.0,1.22310275]
[1609505207532,0.36483,29489.0,29488.0,1.22310275]
[1609505207949,1.0,29490.0,29488.0,1.22310275]
[1609505208251,0.36483,29489.0,29488.0,1.22310275]
[1609505208451,0.88483,29489.0,29488.0,0.96262961]
[1609505208648,0.36483,29489.0,29488.0,0.96262961]
[1609505208851,0.25,29489.0,29488.0,0.96262961]
[1609505209651,1.0,29490.0,29488.0,0.96262961]
[1609505209849,0.36483,29489.0,29488.0,0.96262961]
[1609505210851,1.0,29490.0,29488.0,0.96262961]
[1609505211753,0.36483,29489.0,29488.0,0.96262961]
[1609505212216,1.0,29490.0,29488.0,0.96262961]
[1609505212417,0.00599913,29494.0,29489.0,0.36483]
[1609505212723,0.00599913,29494.0,29491.0,0.36483]
[1609505212918,0.00599913,29494.0,29492.0,0.31680302]
[1609505213213,0.00599913,29494.0,29493.0,4.61483]
[1609505213520,0.00600366,29495.0,29494.0,3.76680302]
[1609505213717,1.0,29496.0,29495.0,4.38163302]
[1609505214115,1.0,29496.0,29495.0,1.32745961]
[1609505214311,1.0,29496.0,29495.0,2.42745961]
[1609505214512,1.0,29496.0,29495.0,2.87245961]
[1609505215113,1.0,29496.0,29495.0,3.38025961]
[1609505216813,1.0,29496.0,29495.0,2.28025961]
[1609505218745,1.0,29496.0,29495.0,2.50620961]
[1609505221448,0.74566729,29497.0,29495.0,4.25620961]
[1609505221650,0.74566729,29497.0,29496.0,3.41680302]
[1609505221951,0.74566729,29497.0,29496.0,4.74426263]
[1609505222149,0.74566729,29497.0,29496.0,2.34426263]
[1609505222351,0.74566729,29497.0,29496.0,2.02745961]
[1609505222881,1.26566729,29497.0,29496.0,2.02745961]
[1609505223174,0.74566729,29497.0,29496.0,2.02745961]
[1609505223374,0.74566729,29497.0,29496.0,1.32745961]
[1609505223682,0.75168713,29497.0,29496.0,1.32745961]
[1609505224077,0.74566729,29497.0,29496.0,1.32745961]
[1609505224776,0.75167814,29497.0,29496.0,1.32745961]
[1609505225169,0.75167814,29497.0,29496.0,2.34745961]
[1609505225870,0.75167814,29497.0,29496.0,1.64745961]
[1609505226873,0.74566729,29497.0,29496.0,1.64745961]
[1609505227853,0.74566729,29497.0,29496.0,1.64426263]
[1609505228151,0.74566729,29497.0,29496.0,0.63221461]
[1609505229460,0.74566729,29497.0,29496.0,0.94901763]
[1609505229964,0.74566729,29497.0,29496.0,0.63221461]
[1609505230164,1.26566729,29497.0,29496.0,0.63221461]
[1609505230368,1.63042229,29497.0,29496.0,0.26745961]
[1609505230674,1.86042229,29497.0,29496.0,0.26745961]
[1609505230869,2.06408991,29497.0,29496.0,0.26745961]
[1609505231366,1.83408991,29497.0,29496.0,0.26745961]
[1609505235315,1.8221394,29497.0,29496.0,2.76745961]
[1609505235521,1.8221394,29497.0,29496.0,0.42245961]
[1609505236512,1.8221394,29497.0,29496.0,0.26745961]
[1609505237021,1.38219574,29497.0,29496.0,0.26745961]
[1609505237221,1.01744074,29497.0,29496.0,2.58221461]
[1609505237517,1.01744074,29497.0,29496.0,0.82221461]
[1609505238236,1.01744074,29497.0,29496.0,0.83295803]
[1609505238540,0.9373844,29497.0,29496.0,0.83295803]
[1609505239341,1.01741053,29497.0,29496.0,0.83295803]
[1609505239941,0.9373844,29497.0,29496.0,0.83295803]
[1609505241034,0.9373844,29497.0,29496.0,1.43295803]
[1609505241338,0.9373844,29497.0,29496.0,0.83295803]
[1609505242577,2.2921394,29497.0,29496.0,0.27820303]
[1609505242787,2.52560752,29497.0,29496.0,0.27820303]
[1609505242987,6.87983325,29497.0,29496.0,0.27820303]
[1609505243191,7.87018375,29497.0,29496.0,0.27820303]
[1609505243384,0.99,29490.0,29484.0,0.00046917]
[1609505243690,0.884755,29484.0,29479.0,0.00046917]
[1609505243892,0.364755,29480.0,29479.0,0.10187999]
[1609505244179,0.364755,29480.0,29479.0,0.10141082]
[1609505244391,0.78103506,29480.0,29479.0,0.10141082]
[1609505244578,0.99603506,29480.0,29473.0,0.00046917]
[1609505244783,1.0,29474.0,29473.0,3.8179]
[1609505244984,1.18952,29474.0,29473.0,5.432655]
[1609505245178,1.18952,29474.0,29473.0,4.182655]
[1609505245483,1.18952,29474.0,29473.0,4.28492207]
[1609505245677,0.18952,29474.0,29473.0,4.54992207]
[1609505245888,0.08217,29475.0,29473.0,4.44812417]
[1609505246188,0.0059966,29480.0,29474.0,0.36522417]
[1609505246387,0.2,29482.0,29474.0,1.38312417]
[1609505246388,0.00599287,29482.0,29474.0,1.38312417]
[1609505246580,0.00599287,29482.0,29475.0,0.625]
[1609505246779,0.00599287,29482.0,29476.0,0.364755]
[1609505247092,0.364755,29484.0,29476.0,1.0179]
[1609505247277,0.364755,29484.0,29477.0,0.26546917]
[1609505247481,0.564755,29484.0,29477.0,1.28336917]
[1609505247681,0.364755,29484.0,29477.0,1.28336917]
[1609505247883,0.564755,29484.0,29478.0,0.00046917]
[1609505248081,0.364755,29484.0,29479.0,0.19]
[1609505248282,0.364755,29484.0,29479.0,1.2029]
[1609505248481,0.364755,29484.0,29480.0,0.18046917]
[1609505249122,0.304755,29484.0,29480.0,0.18046917]
[1609505249313,0.294755,29484.0,29480.0,0.18046917]
[1609505249609,0.5081,29486.0,29480.0,0.18046917]
[1609505249812,0.364859,29485.0,29480.0,0.18046917]
[1609505250117,1.0,29487.0,29481.0,0.00046917]
[1609505250312,0.364859,29486.0,29482.0,0.175]
[1609505250710,0.364859,29486.0,29482.0,1.19336917]
[1609505251316,0.364859,29486.0,29483.0,0.00046917]
[1609505251512,0.364859,29486.0,29484.0,0.175]
[1609505251709,0.364859,29486.0,29484.0,1.09998212]
[1609505251910,0.364859,29486.0,29484.0,1.01836917]
[1609505253847,0.884859,29486.0,29484.0,1.01836917]
[1609505254149,0.364859,29486.0,29484.0,1.01836917]
[1609505254948,0.529859,29486.0,29484.0,1.01836917]
[1609505255349,0.364859,29486.0,29484.0,1.01836917]
[1609505255951,0.879859,29486.0,29484.0,1.01836917]
[1609505256349,0.359859,29486.0,29484.0,1.01836917]
[1609505256550,0.879859,29486.0,29484.0,1.01836917]
[1609505256750,0.359859,29486.0,29484.0,1.01836917]
[1609505256948,0.442207,29485.0,29484.0,1.01836917]
[1609505257208,0.145,29485.0,29484.0,1.01836917]
[1609505257405,0.36484,29485.0,29484.0,1.01836917]
[1609505258713,0.88484,29485.0,29484.0,1.01836917]
[1609505258914,0.36484,29485.0,29484.0,1.01836917]
[1609505259519,0.88484,29485.0,29484.0,1.01836917]
[1609505259718,0.64484,29485.0,29484.0,1.01836917]
[1609505260120,0.36484,29485.0,29484.0,1.01836917]
[1609505265647,0.88484,29485.0,29484.0,1.01836917]
[1609505265949,0.36484,29485.0,29484.0,1.01836917]
[1609505267056,0.00599585,29486.0,29484.0,1.01836917]
[1609505267361,0.00599585,29486.0,29485.0,5.61484]
[1609505267659,0.00599585,29486.0,29485.0,7.62320917]
[1609505267895,0.00599955,29487.0,29485.0,7.62320917]
[1609505268092,0.00600431,29489.0,29486.0,6.94954302]
[1609505268290,0.00600431,29489.0,29488.0,5.61484]
[1609505268693,0.00601037,29492.0,29488.0,6.94954302]
[1609505268892,0.00601037,29492.0,29491.0,5.61484]
[1609505269091,0.00601198,29493.0,29492.0,5.21484]
[1609505269590,0.00601198,29493.0,29492.0,6.23274]
[1609505269887,0.00601198,29493.0,29492.0,7.23274]
[1609505270886,0.2997198,29496.0,29492.0,7.23274]
[1609505271092,0.2997198,29496.0,29494.0,0.36484]
[1609505271397,0.73371678,29497.0,29496.0,3.21680302]
[1609505271622,1.25371678,29497.0,29496.0,1.69954302]
[1609505271790,0.8542667,29497.0,29496.0,1.89054]
[1609505271987,0.8542667,29497.0,29496.0,2.10554]
[1609505272238,0.9517415,29497.0,29496.0,2.10554]
[1609505273438,1.03208731,29497.0,29496.0,2.10554]
[1609505273653,1.55208731,29497.0,29496.0,2.2223578]
[1609505273848,1.03208731,29497.0,29496.0,2.2223578]
[1609505274055,1.03208731,29497.0,29496.0,2.4173578]
[1609505274056,0.9517415,29497.0,29496.0,2.4173578]
[1609505274453,0.9517415,29497.0,29496.0,2.2223578]
[1609505275257,0.9517415,29497.0,29496.0,2.4762578]
[1609505276457,0.94950986,29497.0,29496.0,2.3408578]
[1609505276651,0.94950986,29497.0,29496.0,2.5758578]
[1609505277686,0.81338286,29497.0,29496.0,5.4758578]
[1609505277891,0.81338286,29497.0,29496.0,4.64266082]
[1609505278088,0.59758978,29497.0,29496.0,2.63876082]
[1609505278495,0.55949701,29497.0,29496.0,7.88876082]
[1609505278690,0.30559701,29497.0,29496.0,7.88876082]
[1609505279005,0.32115994,29508.0,29503.0,0.16]
[1609505279203,0.31535994,29508.0,29505.0,0.31680302]
[1609505279398,1.00100001,29509.0,29507.0,5.614682]
[1609505279597,1.03020001,29511.0,29509.0,4.4]
[1609505279793,1.03020001,29511.0,29510.0,5.39938502]
[1609505280090,1.03020001,29511.0,29510.0,6.017582]
[1609505280292,0.02760001,29511.0,29510.0,6.017582]
[1609505280500,0.00020001,29515.0,29513.0,0.96680302]
[1609505280698,0.00020001,29515.0,29514.0,4.70148502]
[1609505281027,0.00020001,29515.0,29514.0,2.61938502]
[1609505281202,1.35488201,29515.0,29514.0,1.33470302]
[1609505281400,1.35488201,29515.0,29514.0,1.0179]
[1609505281590,1.87488201,29515.0,29514.0,1.0179]
[1609505281791,0.88488201,29515.0,29514.0,1.0179]
[1609505282900,0.36488201,29515.0,29514.0,1.0179]
[1609505283315,0.36248201,29515.0,29514.0,3.80067]
[1609505283512,0.00140001,29516.0,29514.0,1.765352]
[1609505283709,0.00140001,29516.0,29515.0,2.96680302]
[1609505283904,0.00140001,29516.0,29515.0,4.34931702]
[1609505284106,0.00140001,29516.0,29515.0,4.032514]
[1609505284706,0.0004,29516.0,29515.0,4.16691399]
[1609505284914,0.0004,29516.0,29515.0,4.86191399]
[1609505285609,0.0004,29516.0,29515.0,5.01191399]
[1609505286011,0.0004,29516.0,29515.0,4.92191399]
[1609505286520,0.0006,29517.0,29516.0,4.30269999]
[1609505286715,0.0006,29517.0,29516.0,6.98701701]
[1609505288165,0.0006,29517.0,29516.0,2.93701701]
[1609505288678,0.0006,29517.0,29516.0,2.62021399]
[1609505288874,0.0006,29517.0,29516.0,1.63521399]
[1609505290579,0.0006,29517.0,29516.0,2.28521399]
[1609505290879,0.0006,29517.0,29516.0,2.75521399]
[1609505293410,0.0006,29517.0,29516.0,5.05521399]
[1609505293609,0.0006,29517.0,29516.0,5.25521399]
[1609505294320,0.0002,29520.0,29519.0,4.74901397]
[1609505294509,0.0002,29520.0,29519.0,5.76691397]
[1609505294709,0.0002,29520.0,29519.0,6.67691397]
[1609505296013,0.0002,29520.0,29519.0,7.35341397]
[1609505296209,0.0002,29520.0,29519.0,7.67021699]
[1609505297315,0.0002,29520.0,29519.0,7.52986546]
[1609505298333,0.0002,29520.0,29519.0,7.82986546]
[1609505298535,0.0002,29520.0,29519.0,7.62986546]
[1609505298734,0.0002,29520.0,29519.0,7.82986546]
[1609505298933,0.0002,29520.0,29519.0,7.62986546]
[1609505299133,0.0002,29520.0,29519.0,8.19415476]